bitfinex/quotes_BTCUSD_20220226
["timestamp","ask_amount","ask_price","bid_price","bid_amount"]
[1645913428067,0.04034197,39440.0,39437.0,0.0504]
[1645913428068,0.04034197,39440.0,39438.0,0.3]
[1645913428516,0.04,39440.0,39437.0,0.0504]
[1645913429117,0.21517169,39440.0,39437.0,0.0504]
[1645913429919,0.21551366,39440.0,39437.0,0.0504]
[1645913430919,0.21517169,39440.0,39437.0,0.0504]
[1645913431122,0.21551366,39440.0,39437.0,0.0504]
[1645913431924,0.21551366,39440.0,39438.0,0.3]
[1645913431925,0.04034197,39440.0,39438.0,0.3]
[1645913432173,0.04,39440.0,39439.0,0.18738047]
[1645913432371,0.04033995,39440.0,39439.0,0.18738047]
[1645913432571,0.04033995,39440.0,39439.0,1.10324047]
[1645913432768,0.04033995,39440.0,39439.0,1.28378616]
[1645913433271,0.04,39440.0,39439.0,1.10324047]
[1645913434168,0.04,39440.0,39439.0,1.40324047]
[1645913436426,0.04,39440.0,39439.0,1.10324047]
[1645913436627,0.04,39440.0,39439.0,0.91586]
[1645913437229,0.04,39440.0,39439.0,1.21586]
[1645913437429,0.04,39440.0,39439.0,0.91586]
[1645913438833,0.04,39440.0,39439.0,1.21586]
[1645913439230,0.04,39440.0,39439.0,0.91586]
[1645913439434,0.04,39440.0,39439.0,1.08067424]
[1645913439666,0.04,39440.0,39439.0,1.48067424]
[1645913439865,0.04,39440.0,39439.0,1.31586]
[1645913440068,0.04,39440.0,39439.0,1.01586]
[1645913440465,0.04,39440.0,39439.0,1.31586]
[1645913440665,0.04,39440.0,39439.0,1.01586]
[1645913441264,0.04,39440.0,39439.0,1.31586]
[1645913441867,0.04,39440.0,39439.0,1.01586]
[1645913442067,0.04,39440.0,39439.0,1.3158]
[1645913442667,0.04,39440.0,39439.0,1.0158]
[1645913443516,0.04,39440.0,39439.0,1.3158]
[1645913443716,0.04,39440.0,39439.0,1.5371469]
[1645913445914,0.04,39440.0,39439.0,1.3158]
[1645913448089,0.34,39440.0,39439.0,0.91586]
[1645913448783,0.417821,39440.0,39439.0,0.91586]
[1645913448980,1.15628904,39440.0,39439.0,0.91586]
[1645913449178,1.14615904,39440.0,39439.0,0.91586]
[1645913449377,1.15628904,39440.0,39439.0,0.91586]
[1645913449579,0.52317899,39440.0,39439.0,0.91586]
[1645913449780,0.90099199,39440.0,39439.0,0.91586]
[1645913450281,0.62176376,39440.0,39439.0,0.91586]
[1645913450579,0.24395076,39440.0,39439.0,0.91586]
[1645913451620,0.23382076,39440.0,39439.0,0.91586]
[1645913452118,0.23382076,39440.0,39439.0,0.91086]
[1645913453421,0.45600444,39440.0,39439.0,0.91086]
[1645913453623,0.23382076,39440.0,39439.0,0.91086]
[1645913459321,0.23382076,39440.0,39439.0,0.90586]
[1645913462173,0.60663376,39440.0,39439.0,0.90586]
[1645913462972,0.42774136,39440.0,39439.0,0.90586]
[1645913464975,0.22882076,39440.0,39439.0,0.90586]
[1645913466026,0.7744,39439.0,39434.0,0.5717294]
[1645913466230,0.1,39437.0,39434.0,0.5717294]
[1645913466424,0.377813,39436.0,39434.0,0.5717294]
[1645913466930,0.441261,39435.0,39434.0,0.5717294]
[1645913467525,0.85838774,39435.0,39434.0,0.5717294]
[1645913467724,0.463448,39435.0,39434.0,0.5717294]
[1645913468928,0.363448,39435.0,39434.0,0.5717294]
[1645913469128,0.073578,39435.0,39434.0,0.5717294]
[1645913469529,0.441261,39435.0,39434.0,0.5717294]
[1645913470666,0.063448,39435.0,39434.0,0.5717294]
[1645913471167,0.063448,39435.0,39434.0,0.5667294]
[1645913471769,0.441261,39435.0,39434.0,0.5667294]
[1645913471967,0.063448,39435.0,39434.0,0.5667294]
[1645913472171,0.441261,39435.0,39434.0,0.5667294]
[1645913473419,0.063448,39435.0,39434.0,0.5667294]
[1645913481924,0.363448,39435.0,39434.0,0.5667294]
[1645913482731,0.741261,39435.0,39434.0,0.5667294]
[1645913482924,1.137848,39435.0,39434.0,0.5667294]
[1645913483228,1.45497474,39435.0,39434.0,0.5667294]
[1645913483427,0.68057474,39435.0,39434.0,0.5667294]
[1645913483726,0.363448,39435.0,39434.0,0.5667294]
[1645913484024,0.741261,39435.0,39434.0,0.5667294]
[1645913484227,0.363448,39435.0,39434.0,0.5667294]
[1645913484525,0.741261,39435.0,39434.0,0.5667294]
[1645913484771,0.363448,39435.0,39434.0,0.5667294]
[1645913485171,0.741261,39435.0,39434.0,0.5667294]
[1645913485572,0.363448,39435.0,39434.0,0.5667294]
[1645913486172,0.741261,39435.0,39434.0,0.5667294]
[1645913486975,0.791261,39435.0,39434.0,0.5667294]
[1645913487174,0.113448,39435.0,39434.0,0.5667294]
[1645913487473,0.791261,39435.0,39434.0,0.5667294]
[1645913487673,0.413448,39435.0,39434.0,0.5667294]
[1645913487877,0.72326299,39435.0,39434.0,0.5667294]
[1645913491020,1.49766299,39435.0,39434.0,0.5667294]
[1645913491818,1.04038973,39435.0,39434.0,0.5667294]
[1645913492476,0.063451,39432.0,39425.0,0.00039209]
[1645913492675,0.36137672,39431.0,39425.0,0.00039209]
[1645913492974,0.1868449,39431.0,39425.0,0.00039209]
[1645913493375,0.1868449,39431.0,39422.0,0.19973726]
[1645913493575,0.1868449,39431.0,39425.0,0.00039274]
[1645913493776,0.34745451,39431.0,39425.0,0.00039274]
[1645913493979,0.1868449,39431.0,39425.0,0.00039274]
[1645913494577,0.1868449,39431.0,39422.0,0.19973726]
[1645913494779,0.1868449,39431.0,39425.0,0.00039274]
[1645913494976,0.16096781,39430.0,39425.0,0.00039274]
[1645913495781,0.16096781,39430.0,39420.0,0.12393]
[1645913496027,0.06346,39428.0,39425.0,0.00039274]
[1645913496825,0.06346,39427.0,39425.0,0.00039274]
[1645913497025,0.06346,39427.0,39421.0,0.377813]
[1645913497328,0.06346,39427.0,39425.0,0.00039255]
[1645913498124,0.06346,39427.0,39420.0,0.01013]
[1645913498331,0.06346,39427.0,39424.0,0.00039255]
[1645913499426,0.06346,39427.0,39421.0,0.377813]
[1645913499677,0.06346,39427.0,39424.0,0.00039256]
[1645913500572,0.06346,39427.0,39425.0,0.377813]
[1645913500772,0.06346,39427.0,39424.0,0.0003926]
[1645913501375,0.27422333,39430.0,39424.0,0.0003926]
[1645913501580,0.01013,39430.0,39425.0,0.377813]
[1645913501779,0.26409333,39433.0,39426.0,0.3]
[1645913501978,0.26409333,39433.0,39427.0,0.63030613]
[1645913502175,0.26409333,39433.0,39429.0,0.377813]
[1645913502377,0.26409333,39433.0,39431.0,0.377813]
[1645913502577,0.26443326,39434.0,39432.0,0.377813]
[1645913502779,0.26443326,39434.0,39429.0,0.377813]
[1645913502978,0.09820202,39430.0,39429.0,0.377813]
[1645913503178,0.09820202,39430.0,39429.0,0.59904192]
[1645913503820,0.09820202,39430.0,39429.0,0.377813]
[1645913504420,0.09820202,39430.0,39426.0,0.377813]
[1645913504621,0.09820202,39430.0,39428.0,0.377813]
[1645913504819,0.09820202,39430.0,39428.0,0.16747432]
[1645913505021,0.09820202,39430.0,39426.0,0.377813]
[1645913505422,0.09820202,39430.0,39427.0,0.02537]
[1645913505721,0.09820202,39430.0,39428.0,0.377813]
[1645913505922,0.09820202,39430.0,39426.0,0.377813]
[1645913506125,0.09820202,39430.0,39429.0,0.377813]
[1645913506322,0.09820202,39430.0,39428.0,0.377813]
[1645913507180,0.09820202,39430.0,39426.0,0.377813]
[1645913507778,0.09820202,39430.0,39425.0,0.377813]
[1645913507975,0.09820202,39430.0,39425.0,0.00039259]
[1645913508174,0.17664624,39427.0,39425.0,0.00039259]
[1645913508874,0.44073957,39427.0,39425.0,0.00039259]
[1645913509075,0.44073957,39427.0,39420.0,0.002]
[1645913509273,0.26409333,39427.0,39424.0,0.00039259]
[1645913510276,0.26409333,39427.0,39421.0,0.22590249]
[1645913510477,0.0504,39428.0,39424.0,0.00039259]
[1645913511330,0.0504,39428.0,39421.0,0.22590249]
[1645913511525,0.0504,39428.0,39424.0,0.00039259]
[1645913512224,0.0504,39428.0,39424.0,0.00030483]
[1645913512426,0.26429092,39427.0,39425.0,0.377813]
[1645913512625,0.26429092,39427.0,39421.0,0.41522136]
[1645913512626,0.26429092,39427.0,39422.0,0.377813]
[1645913512826,0.63377428,39430.0,39422.0,0.377813]
[1645913512827,0.26429092,39428.0,39422.0,0.377813]
[1645913515278,0.26429092,39428.0,39423.0,0.00041078]
[1645913515678,0.41515742,39430.0,39423.0,0.00041078]
[1645913515679,0.26429092,39429.0,39423.0,0.00041078]
[1645913515878,0.36249294,39430.0,39424.0,0.377813]
[1645913516278,0.26429092,39429.0,39425.0,0.377813]
[1645913516478,0.26429092,39429.0,39426.0,0.377813]
[1645913516682,0.26429092,39429.0,39425.0,0.00041077]
[1645913516878,0.36249294,39430.0,39425.0,0.00041077]
[1645913517278,0.26429092,39429.0,39425.0,0.00041077]
[1645913517481,0.26429092,39429.0,39422.0,0.377813]
[1645913517680,0.26429092,39429.0,39425.0,0.00041077]
[1645913518525,0.26429092,39429.0,39422.0,0.3]
[1645913518725,0.26429092,39429.0,39425.0,0.00041077]
[1645913519726,0.26429092,39429.0,39422.0,0.3]
[1645913520026,0.26429092,39429.0,39425.0,0.00041077]
[1645913520929,0.36249294,39430.0,39421.0,0.44059136]
[1645913521129,0.26429092,39429.0,39425.0,0.00041077]
[1645913521528,0.44502291,39429.0,39425.0,0.00041077]
[1645913521729,0.26429092,39429.0,39425.0,0.00041077]
[1645913522180,0.26429092,39429.0,39421.0,0.22590249]
[1645913522383,0.26429092,39429.0,39425.0,0.00041077]
[1645913523180,0.36249294,39430.0,39425.0,0.00041077]
[1645913523379,0.36249294,39430.0,39423.0,0.377813]
[1645913523580,0.36249294,39430.0,39425.0,0.00041077]
[1645913523988,0.52455014,39430.0,39425.0,0.00041077]
[1645913524583,0.52455014,39430.0,39423.0,0.377813]
[1645913524783,0.52455014,39430.0,39425.0,0.00041077]
[1645913524980,0.36249294,39430.0,39425.0,0.00041077]
[1645913525927,0.1919362,39429.0,39425.0,0.00041077]
[1645913526127,0.36249294,39430.0,39425.0,0.00041077]
[1645913527027,0.36249294,39430.0,39422.0,0.3]
[1645913527234,0.36249294,39430.0,39425.0,0.00039867]
[1645913529329,0.36249294,39430.0,39422.0,0.29539867]
[1645913529529,0.36249294,39430.0,39425.0,0.00039867]
[1645913530375,0.26429092,39429.0,39425.0,0.00039867]
[1645913530577,0.26429092,39429.0,39422.0,0.50924321]
[1645913530877,0.26429092,39429.0,39423.0,0.00038443]
[1645913531877,0.26429092,39429.0,39423.0,0.377813]
[1645913532078,0.26429092,39429.0,39423.0,0.00038442]
[1645913533083,0.26429092,39429.0,39421.0,0.22590249]
[1645913533279,0.26429092,39429.0,39423.0,0.00038442]
[1645913534124,0.26429092,39429.0,39421.0,0.22590249]
[1645913534321,0.26429092,39429.0,39423.0,0.3781981]
[1645913534521,0.26429092,39429.0,39423.0,0.0003851]
[1645913535123,0.26429092,39429.0,39424.0,0.377813]
[1645913535522,0.26429092,39429.0,39423.0,0.3781981]
[1645913535724,0.26429092,39429.0,39423.0,0.0003851]
[1645913536124,0.26429092,39429.0,39424.0,0.377813]
[1645913536724,0.26429092,39429.0,39423.0,0.0003851]
[1645913537681,0.26429092,39429.0,39424.0,0.377813]
[1645913540579,0.26395307,39429.0,39423.0,0.6003461]
[1645913544334,0.26395307,39429.0,39423.0,0.377813]
[1645913545589,0.09832255,39430.0,39423.0,0.377813]
[1645913546182,0.09820322,39430.0,39423.0,0.377813]
[1645913546882,0.09820322,39430.0,39424.0,0.1717677]
[1645913547082,0.09808269,39430.0,39422.0,0.3]
[1645913547283,0.09808269,39430.0,39423.0,0.377813]
[1645913548187,0.09808269,39430.0,39423.0,0.55284584]
[1645913548431,0.09808269,39430.0,39423.0,0.377813]
[1645913549533,0.26463859,39428.0,39423.0,0.55852804]
[1645913550534,0.26463859,39429.0,39423.0,0.55852804]
[1645913551338,0.26463859,39429.0,39427.0,0.19843912]
[1645913551534,0.09718059,39430.0,39427.0,0.19843912]
[1645913551535,0.36181918,39430.0,39428.0,0.377813]
[1645913552179,0.26463859,39429.0,39428.0,0.377813]
[1645913553385,0.26463859,39429.0,39428.0,0.28347479]
[1645913553583,0.41413599,39430.0,39427.0,0.19843912]
[1645913553783,0.26461923,39428.0,39427.0,0.19843912]
[1645913553985,0.26461923,39428.0,39427.0,0.283578]
[1645913556931,0.41413599,39430.0,39427.0,0.283578]
[1645913557131,0.41413599,39430.0,39424.0,0.22190432]
[1645913557132,0.26463947,39428.0,39424.0,0.22190432]
[1645913557332,0.26463947,39428.0,39425.0,0.283593]
[1645913558134,0.26463947,39427.0,39425.0,0.283593]
[1645913559677,0.09718059,39430.0,39425.0,0.283593]
[1645913559678,0.26463947,39428.0,39425.0,0.283593]
[1645913561880,0.26463947,39429.0,39425.0,0.283593]
[1645913563434,0.26463947,39428.0,39425.0,0.283593]
[1645913563832,0.41453777,39430.0,39425.0,0.283593]
[1645913563833,0.26463947,39427.0,39425.0,0.283593]
[1645913564032,0.26463947,39427.0,39424.0,0.283604]
[1645913565033,0.26463947,39428.0,39424.0,0.283604]
[1645913565432,0.26463947,39427.0,39424.0,0.283604]
[1645913565833,0.26463947,39428.0,39424.0,0.283604]
[1645913566236,0.26463947,39427.0,39424.0,0.283604]
[1645913568289,0.26463947,39428.0,39424.0,0.283604]
[1645913568488,0.26463947,39427.0,39424.0,0.283604]
[1645913568688,0.26463947,39428.0,39424.0,0.283604]
[1645913571935,0.26463947,39427.0,39424.0,0.283604]
[1645913572535,0.26463947,39427.0,39424.0,0.283503]
[1645913581934,0.26463947,39427.0,39424.0,0.50234838]
[1645913582192,0.26463947,39427.0,39424.0,0.283503]
[1645913595744,0.26463947,39428.0,39424.0,0.283503]
[1645913595946,0.00040176,39430.0,39428.0,0.28347]
[1645913595947,0.26463947,39429.0,39428.0,0.28347]
[1645913601041,0.00040179,39430.0,39428.0,0.28347]
[1645913601242,0.00040179,39430.0,39427.0,0.20507019]
[1645913601447,0.26474227,39429.0,39428.0,0.28347]
[1645913602744,0.26474227,39429.0,39427.0,0.20507019]
[1645913602946,0.26474227,39429.0,39428.0,0.28347]
[1645913603145,0.26474227,39429.0,39427.0,0.20507019]
[1645913603543,0.26474227,39429.0,39428.0,0.28347]
[1645913604145,0.26474227,39429.0,39428.0,0.190779]
[1645913604344,0.00040179,39430.0,39428.0,0.190779]
[1645913604345,0.31735719,39430.0,39428.0,0.190779]
[1645913604547,0.00040179,39430.0,39428.0,0.190779]
[1645913604999,0.26473035,39429.0,39428.0,0.190779]
[1645913607401,0.3169554,39430.0,39427.0,0.20507019]
[1645913607700,0.26471146,39428.0,39427.0,0.20507019]
[1645913607905,0.26471146,39428.0,39427.0,0.39585319]
[1645913609641,0.26471146,39428.0,39427.0,0.190783]
[1645913609942,0.26471146,39428.0,39424.0,0.190801]
[1645913610944,0.26471146,39428.0,39424.0,0.38687893]
[1645913612593,0.26471146,39427.0,39424.0,0.38687893]
[1645913612990,0.26471146,39427.0,39424.0,0.190801]
[1645913613200,0.26471146,39427.0,39423.0,0.0004105]
[1645913613201,0.56471146,39426.0,39423.0,0.0004105]
[1645913613392,0.3169554,39425.0,39423.0,0.0004105]
[1645913613591,0.3169554,39424.0,39419.0,0.001]
[1645913613792,0.26462737,39422.0,39419.0,0.001]
[1645913613991,0.26462737,39421.0,39419.0,0.001]
[1645913614591,0.01013,39422.0,39419.0,0.001]
[1645913614592,0.26460458,39420.0,39419.0,0.001]
[1645913614790,0.3169554,39421.0,39419.0,0.001]
[1645913614991,0.26454695,39420.0,39418.0,0.00038883]
[1645913615190,0.46286419,39420.0,39418.0,0.00038883]
[1645913615391,0.52633419,39420.0,39418.0,0.00038883]
[1645913616043,0.3,39419.0,39414.0,0.001]
[1645913616240,0.3,39419.0,39417.0,0.00038883]
[1645913616438,0.06347,39420.0,39417.0,0.00038883]
[1645913616638,0.126942,39420.0,39417.0,0.00038883]
[1645913617244,0.126942,39420.0,39412.0,0.001]
[1645913617441,0.3,39419.0,39417.0,0.00038883]
[1645913617646,0.20359133,39418.0,39417.0,0.00038883]
[1645913617839,0.3,39419.0,39417.0,0.00038883]
[1645913618541,0.3,39419.0,39410.0,0.18613736]
[1645913618742,0.21530427,39418.0,39416.0,0.00037652]
[1645913619341,0.426942,39420.0,39416.0,0.00037652]
[1645913619791,0.426942,39420.0,39416.0,0.00036514]
[1645913620196,0.126942,39420.0,39416.0,0.00036514]
[1645913620592,0.426942,39420.0,39416.0,0.00036514]
[1645913620799,0.426942,39420.0,39409.0,0.23562493]
[1645913620997,0.426942,39420.0,39416.0,0.00036514]
[1645913621194,0.21249452,39419.0,39416.0,0.00036514]
[1645913622095,0.21249452,39419.0,39411.0,0.001]
[1645913622395,0.21249452,39419.0,39409.0,0.23562493]
[1645913622396,0.3,39418.0,39416.0,0.00036514]
[1645913622595,0.21249452,39419.0,39416.0,0.00036514]
[1645913623193,0.21249452,39419.0,39411.0,0.001]
[1645913623467,0.3,39418.0,39416.0,0.00036786]
[1645913623672,0.21249452,39419.0,39416.0,0.00036786]
[1645913624168,0.3,39418.0,39416.0,0.00036786]
[1645913624367,0.21249452,39419.0,39416.0,0.00036786]
[1645913624568,0.21249452,39419.0,39409.0,0.39847791]
[1645913624768,0.3,39418.0,39415.0,0.00036786]
[1645913624969,0.21249452,39419.0,39415.0,0.00036786]
[1645913625673,0.21249452,39419.0,39404.0,0.36794184]
[1645913625877,0.3,39418.0,39415.0,0.00036786]
[1645913626972,0.063477,39416.0,39406.0,0.26574758]
[1645913627198,0.063477,39416.0,39415.0,0.0003675]
[1645913627594,0.363477,39416.0,39415.0,0.0003675]
[1645913627794,0.77453944,39416.0,39409.0,0.00138794]
[1645913627992,0.77453944,39416.0,39406.0,0.04]
[1645913628294,0.22929013,39413.0,39406.0,0.04]
[1645913628494,0.363483,39412.0,39406.0,0.04]
[1645913629095,0.063483,39412.0,39406.0,0.04]
[1645913629294,0.363483,39412.0,39406.0,0.04]
[1645913629497,0.063483,39412.0,39406.0,0.04]
[1645913629700,0.363483,39412.0,39406.0,0.04]
[1645913629900,0.063483,39412.0,39406.0,0.04]
[1645913630199,0.363483,39412.0,39406.0,0.04]
[1645913630400,0.447013,39412.0,39406.0,0.04]
[1645913630599,0.447013,39412.0,39407.0,0.00041005]
[1645913631038,2.40025361,39409.0,39407.0,0.00041005]
[1645913631239,0.063483,39412.0,39407.0,0.00041005]
[1645913631453,0.363483,39412.0,39407.0,0.00041005]
[1645913631642,0.063486,39411.0,39406.0,0.04]
[1645913631839,0.063486,39411.0,39408.0,0.00041004]
[1645913632743,0.063481,39414.0,39408.0,0.00041004]
[1645913632942,0.01013,39413.0,39406.0,0.04]
[1645913633140,0.01013,39413.0,39408.0,0.00041004]
[1645913634141,0.01013,39413.0,39406.0,0.04]
[1645913634341,0.063481,39414.0,39409.0,0.00041004]
[1645913634993,0.3,39413.0,39409.0,0.00041004]
[1645913635196,0.3,39413.0,39406.0,0.04]
[1645913635395,0.3,39413.0,39409.0,0.0003832]
[1645913635696,0.363482,39413.0,39409.0,0.0003832]
[1645913636394,0.363482,39413.0,39406.0,0.04]
[1645913636599,0.373612,39413.0,39409.0,0.0003832]
[1645913637595,0.373612,39413.0,39406.0,0.04]
[1645913637898,0.363482,39413.0,39409.0,0.0003832]
[1645913638546,0.377838,39412.0,39409.0,0.0003832]
[1645913638748,0.31013,39411.0,39409.0,0.0003832]
[1645913638954,0.31013,39411.0,39406.0,0.04]
[1645913639152,0.31013,39411.0,39409.0,0.00038321]
[1645913639153,0.377838,39410.0,39409.0,0.00038321]
[1645913639347,0.677838,39410.0,39409.0,0.00038321]
[1645913640049,0.677838,39410.0,39406.0,0.03538321]
[1645913640249,0.3,39410.0,39406.0,0.03538321]
[1645913640548,0.377838,39409.0,39406.0,0.03538321]
[1645913642395,0.441326,39409.0,39406.0,0.03538321]
[1645913642600,0.19045852,39414.0,39406.0,0.03538321]
[1645913642601,0.01014,39413.0,39406.0,0.03538321]
[1645913642796,0.377838,39411.0,39406.0,0.03538321]
[1645913642995,0.3,39414.0,39406.0,0.03538321]
[1645913643198,0.23510747,39415.0,39406.0,0.03538321]
[1645913643399,0.073606,39417.0,39407.0,0.3]
[1645913643797,0.063476,39417.0,39407.0,0.30041006]
[1645913644899,0.063476,39417.0,39407.0,0.3]
[1645913645097,0.063476,39417.0,39407.0,0.30041006]
[1645913646444,0.063476,39417.0,39407.0,0.00041006]
[1645913647247,0.063476,39417.0,39406.0,0.03538321]
[1645913647447,0.31013,39418.0,39407.0,0.00041006]
[1645913647649,0.18371055,39416.0,39406.0,0.03534217]
[1645913650992,0.18371055,39416.0,39406.0,0.03034217]
[1645913651292,0.00012147,39414.0,39406.0,0.03034217]
[1645913652094,0.18371055,39416.0,39406.0,0.03034217]
[1645913652294,0.00040488,39414.0,39406.0,0.03034217]
[1645913652694,0.12736688,39414.0,39406.0,0.03034217]
[1645913653294,0.20995997,39413.0,39406.0,0.03034217]
[1645913653547,0.06388588,39414.0,39406.0,0.03034217]
[1645913653944,0.00040488,39414.0,39406.0,0.03034217]
[1645913654549,0.31013,39416.0,39406.0,0.03034217]
[1645913654749,0.00040488,39414.0,39406.0,0.03034217]
[1645913655748,0.17936923,39415.0,39406.0,0.03034217]
[1645913656047,0.00040488,39414.0,39406.0,0.03034217]
[1645913656849,1.85458103,39415.0,39406.0,0.03034217]
[1645913657059,0.137079,39418.0,39414.0,0.17151153]
[1645913657312,0.137079,39418.0,39414.0,0.15436038]
[1645913657510,0.126949,39418.0,39414.0,0.15436038]
[1645913657906,0.363474,39418.0,39414.0,0.15436038]
[1645913658305,0.3638789,39418.0,39414.0,0.15436038]
[1645913658506,0.0638789,39418.0,39414.0,0.15436038]
[1645913659307,0.063474,39418.0,39414.0,0.15436038]
[1645913659505,0.0638789,39418.0,39414.0,0.15436038]
[1645913659710,0.06285849,39418.0,39414.0,0.15436038]
[1645913660505,0.06245359,39418.0,39414.0,0.15436038]
[1645913660946,0.37981389,39418.0,39414.0,0.15436038]
[1645913661349,0.67981389,39418.0,39414.0,0.15436038]
[1645913661746,0.37940899,39418.0,39414.0,0.15436038]
[1645913661945,0.3173603,39418.0,39414.0,0.15436038]
[1645913662949,0.3169554,39418.0,39414.0,0.15436038]
[1645913663263,0.21210774,39417.0,39414.0,0.15436038]
[1645913663649,0.063477,39416.0,39409.0,0.001]
[1645913663849,0.3,39415.0,39409.0,0.001]
[1645913664450,0.0004049,39414.0,39409.0,0.001]
[1645913664701,0.0004049,39414.0,39409.0,0.22295661]
[1645913665101,0.06388772,39414.0,39409.0,0.22295661]
[1645913665302,0.06348282,39414.0,39409.0,0.22295661]
[1645913665603,0.06388771,39414.0,39409.0,0.22295661]
[1645913665901,0.063482,39413.0,39409.0,0.22295661]
[1645913669442,0.00040489,39414.0,39409.0,0.22295661]
[1645913669643,0.31736029,39414.0,39409.0,0.22295661]
[1645913670251,0.3169554,39414.0,39406.0,0.03034217]
[1645913670441,0.063484,39412.0,39406.0,0.03034217]
[1645913671242,0.126968,39412.0,39406.0,0.03034217]
[1645913671443,0.3,39411.0,39406.0,0.03034217]
[1645913671642,0.126968,39412.0,39406.0,0.03034217]
[1645913672505,0.126968,39412.0,39407.0,0.190913]
[1645913672705,0.4885678,39414.0,39408.0,0.190909]
[1645913672899,0.48897267,39414.0,39413.0,0.17039095]
[1645913673100,0.31736027,39414.0,39413.0,0.17039095]
[1645913673798,0.3169554,39414.0,39413.0,0.17039095]
[1645913674001,0.3173603,39415.0,39413.0,0.17039095]
[1645913674399,0.0004049,39415.0,39413.0,0.17039095]
[1645913674899,0.4885632,39416.0,39413.0,0.17039095]
[1645913675304,0.4889681,39416.0,39413.0,0.17039095]
[1645913676146,0.1716078,39416.0,39413.0,0.17039095]
[1645913676345,0.4885632,39416.0,39413.0,0.17039095]
[1645913676547,0.4889681,39416.0,39413.0,0.17039095]
[1645913677245,0.4889681,39416.0,39413.0,0.15335186]
[1645913677445,0.4885632,39416.0,39413.0,0.15335186]
[1645913677647,0.4889681,39416.0,39413.0,0.15335186]
[1645913678449,0.1720127,39416.0,39413.0,0.15335186]
[1645913678648,0.1716078,39416.0,39413.0,0.15335186]
[1645913678852,0.1720127,39416.0,39414.0,0.190872]
[1645913679053,0.0004049,39416.0,39414.0,0.190872]
[1645913679695,19.0,39417.0,39416.0,0.00078866]
[1645913680096,19.0004049,39417.0,39416.0,0.00078866]
[1645913680994,19.0,39417.0,39416.0,0.00078866]
[1645913685660,19.0,39417.0,39416.0,0.19164666]
[1645913687305,19.0,39417.0,39416.0,0.00078866]
[1645913687900,19.17159452,39417.0,39416.0,0.00078866]
[1645913688502,19.0,39417.0,39416.0,0.00078866]
[1645913689705,19.0,39417.0,39416.0,0.19164666]
[1645913692850,19.0,39417.0,39416.0,0.00078866]
[1645913693850,19.17160212,39417.0,39416.0,0.00078866]
[1645913695103,19.40683413,39417.0,39416.0,0.00078866]
[1645913697506,19.17160212,39417.0,39416.0,0.00078866]
[1645913704405,19.17160212,39417.0,39416.0,0.19156641]
[1645913704803,19.17160212,39417.0,39416.0,0.00070841]
[1645913705005,19.17160212,39417.0,39416.0,0.19156641]
[1645913705204,19.17160212,39417.0,39416.0,0.00070841]
[1645913705706,19.17160212,39417.0,39416.0,0.19156641]
[1645913705949,19.0,39417.0,39416.0,0.19156641]
[1645913706748,19.0,39417.0,39416.0,0.00070841]
[1645913707251,19.0,39417.0,39416.0,0.19156641]
[1645913709252,19.0,39417.0,39416.0,0.20664845]
[1645913728554,19.0,39417.0,39416.0,0.20657954]
[1645913732703,19.06347,39417.0,39416.0,0.20657954]
[1645913732904,19.3284838,39417.0,39416.0,0.20657954]
[1645913733105,19.50007624,39417.0,39416.0,0.20657954]
[1645913733507,19.50007624,39417.0,39416.0,0.01572154]
[1645913733703,19.23506244,39417.0,39416.0,0.01572154]
[1645913734906,19.55246543,39417.0,39416.0,0.01572154]
[1645913735113,19.55303703,39417.0,39416.0,0.01572154]
[1645913735953,19.23506244,39417.0,39416.0,0.01572154]
[1645913744452,19.55308217,39417.0,39416.0,0.01572154]
[1645913744652,19.23506244,39417.0,39416.0,0.01572154]
[1645913746356,19.55313407,39417.0,39416.0,0.01572154]
[1645913748020,19.23506244,39417.0,39416.0,0.01572154]
[1645913749020,19.23506244,39417.0,39416.0,0.01508204]
[1645913750021,19.55311236,39417.0,39416.0,0.01508204]
[1645913752853,19.55311236,39417.0,39416.0,0.01099638]
[1645913753056,19.55311236,39417.0,39416.0,0.00754102]
[1645913753353,19.55311236,39417.0,39416.0,0.01099638]
[1645913754152,19.38151992,39417.0,39416.0,0.01099638]
[1645913755905,19.06347,39417.0,39416.0,0.01099638]
[1645913756503,19.0604087,39417.0,39416.0,0.01099638]
[1645913757504,19.06030477,39417.0,39416.0,0.01099638]
[1645913758755,19.37835469,39417.0,39416.0,0.01099638]
[1645913762999,19.06030477,39417.0,39416.0,0.01099638]
[1645913763599,19.23190641,39417.0,39416.0,0.01099638]
[1645913764001,19.55050906,39417.0,39416.0,0.01099638]
[1645913764204,19.23190641,39417.0,39416.0,0.01099638]
[1645913772702,19.23190641,39417.0,39416.0,0.00818721]
[1645913772904,19.23190641,39417.0,39416.0,0.00345536]
[1645913773105,19.23190641,39417.0,39416.0,0.00818721]
[1645913773756,19.60168771,39417.0,39416.0,0.00818721]
[1645913775552,19.60162771,39417.0,39416.0,0.00818721]
[1645913776154,19.23184641,39417.0,39416.0,0.00818721]
[1645913776353,19.23094371,39417.0,39416.0,0.00818721]
[1645913776753,19.60072501,39417.0,39416.0,0.00818721]
[1645913781350,19.35561245,39417.0,39416.0,0.00818721]
[1645913788656,19.60427581,39417.0,39416.0,0.00818721]
[1645913789959,19.60427581,39417.0,39416.0,0.00321584]
[1645913790161,19.60427581,39417.0,39412.0,0.190878]
[1645913790360,0.31999124,39414.0,39412.0,0.190878]
[1645913790959,0.31999124,39414.0,39410.0,0.190893]
[1645913792211,0.31999124,39413.0,39410.0,0.190893]
[1645913794013,0.38346824,39413.0,39410.0,0.190893]
[1645913794410,0.31999124,39412.0,39410.0,0.190893]
[1645913795411,0.31999124,39412.0,39411.0,0.00321584]
[1645913795610,0.4368091,39413.0,39411.0,0.00265386]
[1645913796052,0.363477,39413.0,39411.0,0.00265386]
[1645913796257,0.3,39412.0,39411.0,0.00265386]
[1645913796453,0.6733321,39412.0,39411.0,0.00265386]
[1645913796657,0.84493374,39412.0,39411.0,0.00265386]
[1645913796851,0.6733321,39412.0,39411.0,0.00265386]
[1645913797052,0.84493374,39412.0,39411.0,0.00265386]
[1645913797856,0.6733321,39412.0,39411.0,0.00265386]
[1645913798256,0.3733321,39412.0,39411.0,0.00265386]
[1645913798859,0.4368091,39413.0,39411.0,0.00265386]
[1645913799158,0.3733321,39412.0,39411.0,0.00265386]
[1645913800207,0.77687753,39412.0,39411.0,0.00265386]
[1645913800608,0.84036117,39412.0,39409.0,0.00038445]